fUST/lending_fUST_20250221
["ID","MTS","AMOUNT","RATE_DAILY","PERIOD"]
[353812784,1740073846097,-500.0,0.00013698,2]
[353812785,1740073846104,-500.0,0.00013698,2]
[353812786,1740073846112,-500.0,0.00013698,2]
[353812787,1740073846120,-581.49,0.00013698,2]
[353812788,1740073846127,-500.0,0.00013698,2]
[353812789,1740073846135,-500.0,0.00013698,2]
[353812790,1740073846144,-500.0,0.00013698,2]
[353812791,1740073846153,-979.57,0.00013698,2]
[353812792,1740073846162,-593.07,0.00013698,2]
[353812793,1740073846171,-505.33559879,0.00013698,2]
[353812794,1740073846179,-517.24813501,0.00013698,2]
[353812795,1740073846188,-500.75775592,0.00013698,2]
[353812796,1740073846198,-627.30091157,0.00013698,2]
[353812797,1740073846206,-721.17,0.00013698,2]
[353812798,1740073846216,-500.0,0.00013698,2]
[353812799,1740073846225,-500.0,0.00013698,2]
[353812800,1740073846235,-500.0,0.00013698,2]
[353812801,1740073846244,-245.24611621,0.00013698,2]
[353812802,1740073846256,-11665.38,0.00013698,2]
[353812803,1740073846266,-500.0,0.00013698,2]
[353812804,1740073846275,-500.0,0.00013698,2]
[353812805,1740073846285,-151.0,0.00013699,2]
[353812806,1740073846294,-151.0,0.00013699,2]
[353812807,1740073846303,-151.0,0.00013699,2]
[353812808,1740073846312,-151.0,0.00013699,2]
[353812809,1740073846321,-151.0,0.00013699,2]
[353812810,1740073846330,-151.0,0.00013699,2]
[353812811,1740073846338,-151.0,0.00013699,2]
[353812812,1740073846347,-151.0,0.00013699,2]
[353812813,1740073846356,-151.0,0.00013699,2]
[353812814,1740073846365,-151.0,0.00013699,2]
[353812815,1740073846374,-151.0,0.00013699,2]
[353812816,1740073846383,-151.0,0.00013699,2]
[353812817,1740073846391,-151.0,0.00013699,2]
[353812818,1740073846400,-151.0,0.00013699,2]
[353812819,1740073846409,-151.0,0.00013699,2]
[353812820,1740073846417,-151.0,0.00013699,2]
[353812821,1740073846426,-500.0,0.00013699,2]
[353812822,1740073846435,-500.79241487,0.00013699,2]
[353812823,1740073846444,-500.0,0.00013699,2]
[353812824,1740073846453,-500.65494477,0.00013699,2]
[353812825,1740073846463,-240.55044473,0.00013699,2]
[353812826,1740073846471,-151.0,0.00013699,2]
[353812827,1740073846480,-287.999999,0.00013699,2]
[353812828,1740073846489,-500.0,0.000137,2]
[353812829,1740073846497,-300.0,0.000137,4]
[353812830,1740073846506,-482.0,0.000137,2]
[353812831,1740073846515,-482.0,0.000137,2]
[353812832,1740073846525,-151.0,0.000137,2]
[353812833,1740073846534,-335.76578364,0.000137,2]
[353812834,1740073846543,-335.76578364,0.000137,2]
[353812835,1740073846567,-335.76578364,0.000137,2]
[353812836,1740073846578,-335.76578364,0.000137,2]
[353812837,1740073846588,-335.76578364,0.000137,2]
[353812838,1740073846598,-335.76578364,0.000137,2]
[353812839,1740073846607,-335.76578364,0.000137,2]
[353812840,1740073846617,-335.76578364,0.000137,2]
[353812841,1740073846626,-335.76578364,0.000137,2]
[353812842,1740073846636,-335.76578364,0.000137,2]
[353812843,1740073846647,-335.76578364,0.000137,2]
[353812844,1740073846657,-335.76578364,0.000137,2]
[353812845,1740073846666,-335.76578364,0.000137,2]
[353812846,1740073846675,-335.76578364,0.000137,2]
[353812847,1740073846685,-335.76578364,0.000137,2]
[353812848,1740073846694,-335.76578364,0.000137,2]
[353812849,1740073846703,-335.76578364,0.000137,2]
[353812850,1740073846712,-335.76578364,0.000137,2]
[353812851,1740073846722,-335.76578364,0.000137,2]
[353812852,1740073846731,-335.76,0.000137,2]
[353812853,1740073846741,-783.45349515,0.000137,2]
[353812854,1740073846751,-783.45349515,0.000137,2]
[353812855,1740073846760,-783.45349515,0.000137,2]
[353812856,1740073846769,-783.45349515,0.000137,2]
[353812857,1740073846779,-783.45349515,0.000137,2]
[353812858,1740073846788,-783.45349515,0.000137,2]
[353812859,1740073846798,-783.45349515,0.000137,2]
[353812860,1740073846807,-783.45349515,0.000137,2]
[353812861,1740073846819,-783.45349515,0.000137,2]
[353812862,1740073846828,-783.45349515,0.000137,2]
[353812863,1740073846838,-783.45349515,0.000137,2]
[353812864,1740073846848,-783.45349515,0.000137,2]
[353812865,1740073846859,-783.45349515,0.000137,2]
[353812866,1740073846868,-783.45349515,0.000137,2]
[353812867,1740073846878,-783.45349515,0.000137,2]
[353812868,1740073846888,-783.45349515,0.000137,2]
[353812869,1740073846897,-783.45349515,0.000137,2]
[353812870,1740073846907,-783.45349515,0.000137,2]
[353812871,1740073846917,-783.45349515,0.000137,2]
[353812872,1740073846926,-783.45,0.000137,2]
[353812873,1740073846936,-7438.69753278,0.00013727,2]
[353812874,1740073846944,-150.0,0.00013737,2]
[353812875,1740073846953,-150.0,0.00013737,2]
[353812876,1740073846963,-150.0,0.00013737,2]
[353812877,1740073846973,-150.0,0.00013737,2]
[353812878,1740073846983,-3174.76207246,0.00013744,2]
[353812879,1740073846992,-2281.1,0.0001377,2]
[353812880,1740073847002,-500.0,0.00013773,2]
[353812881,1740073847011,-500.0,0.00013773,2]
[353812882,1740073847025,-500.0,0.0001378,2]
[353812883,1740073847035,-500.0,0.0001378,2]
[353812884,1740073847044,-500.0,0.0001378,2]
[353812885,1740073847054,-501.30971949,0.0001378,2]
[353812886,1740073847064,-500.0,0.0001378,2]
[353812887,1740073847073,-500.0,0.0001378,2]
[353812888,1740073847083,-500.0,0.0001378,2]
[353812889,1740073847092,-164.89384226,0.0001378,2]
[353812890,1740073847102,-586.16433757,0.0001378,2]
[353812891,1740073847111,-500.0,0.0001378,2]
[353812892,1740073847120,-500.0,0.0001378,2]
[353812893,1740073847131,-503.53245811,0.0001378,2]
[353812894,1740073847140,-500.0,0.0001378,2]
[353812895,1740073847150,-500.0,0.0001378,2]
[353812896,1740073847159,-500.0,0.0001378,2]
[353812897,1740073847169,-500.0,0.0001378,2]
[353812898,1740073847178,-500.0,0.0001378,2]
[353812899,1740073847188,-504.04029848,0.0001378,2]
[353812900,1740073847198,-500.0,0.0001378,2]
[353812901,1740073847207,-500.0,0.0001378,2]
[353812902,1740073847218,-500.0,0.0001378,2]
[353812903,1740073847229,-500.0,0.0001378,2]
[353812904,1740073847239,-500.0,0.0001378,2]
[353812905,1740073847248,-500.0,0.0001378,2]
[353812906,1740073847258,-500.0,0.0001378,2]
[353812907,1740073847267,-472.19035724,0.0001378,2]
[353812908,1740073847276,-228.72462489,0.0001378,2]
[353812909,1740073847286,-500.0,0.0001378,2]
[353812910,1740073847297,-500.0,0.0001378,2]
[353812911,1740073847307,-500.0,0.0001378,2]
[353812912,1740073847317,-500.0,0.0001378,2]
[353812913,1740073847326,-506.67497748,0.0001378,2]
[353812914,1740073847336,-500.0,0.0001378,2]
[353812915,1740073847346,-500.0,0.0001378,2]
[353812916,1740073847360,-500.0,0.0001378,2]
[353812917,1740073847374,-516.57767963,0.0001378,2]
[353812918,1740073847388,-500.0,0.0001378,2]
[353812919,1740073847401,-500.0,0.0001378,2]
[353812920,1740073847414,-548.63468858,0.0001378,2]
[353812921,1740073847424,-500.92866813,0.0001378,2]
[353812922,1740073847434,-500.0,0.0001378,2]
[353812923,1740073847444,-500.0,0.0001378,2]
[353812924,1740073847456,-500.0,0.0001378,2]
[353812925,1740073847468,-153.04610401,0.0001378,2]
[353812926,1740073847478,-500.0,0.0001378,2]
[353812927,1740073847490,-500.0,0.0001378,2]
[353812928,1740073847500,-505.88218066,0.0001378,2]
[353812929,1740073847510,-317.37392882,0.0001378,2]
[353812930,1740073847671,-500.0,0.0001378,2]
[353812931,1740073847681,-581.41995217,0.0001378,2]
[353812932,1740073847690,-500.0,0.0001378,2]
[353812933,1740073847700,-500.0,0.0001378,2]
[353812934,1740073847709,-832.33,0.0001378,2]
[353812935,1740073847718,-500.0,0.0001378,2]
[353812936,1740073847727,-500.0,0.0001378,2]
[353812937,1740073847736,-500.0,0.0001378,2]
[353812938,1740073847745,-500.0,0.0001378,2]
[353812939,1740073847755,-500.0,0.0001378,2]
[353812940,1740073847764,-500.0,0.0001378,2]
[353812941,1740073847773,-500.0,0.0001378,2]
[353812942,1740073847783,-500.0,0.0001378,2]
[353812943,1740073847792,-500.0,0.0001378,2]
[353812944,1740073847801,-506.58734621,0.0001378,2]
[353812945,1740073847811,-523.18,0.0001378,2]
[353812946,1740073847826,-500.0,0.0001378,2]
[353812947,1740073847835,-500.0,0.0001378,2]
[353812948,1740073847845,-500.0,0.0001378,2]
[353812949,1740073847854,-500.0,0.0001378,2]
[353812950,1740073847864,-500.0,0.0001378,2]
[353812951,1740073847873,-503.79120332,0.0001378,2]
[353812952,1740073847882,-500.0,0.0001378,2]
[353812953,1740073847893,-500.0,0.0001378,2]
[353812954,1740073847902,-500.0,0.0001378,2]
[353812955,1740073847911,-734.48,0.0001378,2]
[353812956,1740073847921,-500.0,0.0001378,2]
[353812957,1740073847930,-240.0,0.0001378,2]
[353812958,1740073847940,-500.0,0.0001378,2]
[353812959,1740073847949,-500.0,0.0001378,2]
[353812960,1740073847958,-500.0,0.0001378,2]
[353812961,1740073847968,-423.1100184,0.0001378,2]
[353812962,1740073847977,-500.0,0.0001378,2]
[353812963,1740073847986,-500.0,0.0001378,2]
[353812964,1740073847995,-500.0,0.0001378,2]
[353812965,1740073848005,-500.0,0.0001378,2]
[353812966,1740073848014,-591.01742791,0.0001378,2]
[353812967,1740073848024,-500.0,0.0001378,2]
[353812968,1740073848034,-397.52215029,0.0001378,2]
[353812969,1740073848043,-502.81041958,0.0001378,2]
[353812970,1740073848053,-500.0,0.0001378,2]
[353812971,1740073848063,-500.0,0.0001378,2]
[353812972,1740073848073,-460.83627383,0.0001378,2]
[353812973,1740073848084,-632.59268705,0.0001378,2]
[353812974,1740073848094,-500.0,0.0001378,2]
[353812975,1740073848104,-500.0,0.0001378,2]
[353812976,1740073848113,-500.0,0.0001378,2]
[353812977,1740073848123,-500.0,0.0001378,2]
[353812978,1740073848132,-500.0,0.0001378,2]
[353812979,1740073848143,-500.0,0.0001378,2]
[353812980,1740073848152,-500.0,0.0001378,2]
[353812981,1740073848162,-512.76,0.0001378,2]
[353812982,1740073848171,-500.0,0.0001378,2]
[353812983,1740073848181,-500.0,0.0001378,2]
[353812984,1740073848190,-2330.69,0.0001378,2]
[353812985,1740073848200,-500.0,0.0001378,2]
[353812986,1740073848209,-581.56511577,0.0001378,2]
[353812987,1740073848219,-2298.24,0.0001378,2]
[353812988,1740073848228,-500.0,0.0001378,2]
[353812989,1740073848238,-959.04,0.0001378,2]
[353812990,1740073848248,-165.87544267,0.0001378,2]
[353812991,1740073848257,-500.0,0.0001378,2]
[353812992,1740073848267,-500.0,0.0001378,2]
[353812993,1740073848277,-500.0,0.0001378,2]
[353812994,1740073848287,-500.0,0.0001378,2]
[353812995,1740073848296,-500.0,0.0001378,2]
[353812996,1740073848306,-500.0,0.0001378,2]
[353812997,1740073848315,-500.0,0.0001378,2]
[353812998,1740073848326,-500.0,0.0001378,2]
[353812999,1740073848336,-500.0,0.0001378,2]
[353813000,1740073848345,-500.0,0.0001378,2]
[353813001,1740073848355,-288.91763651,0.0001378,2]
[353813002,1740073848366,-500.0,0.0001378,2]
[353813003,1740073848376,-500.0,0.0001378,2]
[353813004,1740073848385,-500.0,0.0001378,2]
[353813005,1740073848396,-1194.47,0.0001378,2]
[353813006,1740073848406,-500.0,0.0001378,2]
[353813007,1740073848415,-500.0,0.0001378,2]
[353813008,1740073848424,-500.0,0.0001378,2]
[353813009,1740073848434,-500.0,0.0001378,2]
[353813010,1740073848444,-500.0,0.0001378,2]
[353813011,1740073848453,-503.34058286,0.0001378,2]
[353813012,1740073848463,-500.0,0.0001378,2]
[353813013,1740073848472,-500.0,0.0001378,2]
[353813014,1740073848482,-500.0,0.0001378,2]
[353813015,1740073848492,-500.0,0.0001378,2]
[353813016,1740073848501,-500.0,0.0001378,2]
[353813017,1740073848511,-500.0,0.0001378,2]
[353813018,1740073848521,-755.28,0.0001378,2]
[353813019,1740073848531,-500.0,0.0001378,2]
[353813020,1740073848540,-500.0,0.0001378,2]
[353813021,1740073848550,-500.0,0.0001378,2]
[353813022,1740073848560,-195.86670974,0.0001378,2]
[353813023,1740073848569,-500.0,0.0001378,2]
[353813024,1740073848580,-1977.01,0.0001378,2]
[353813025,1740073848590,-677.41,0.0001378,2]
[353813026,1740073848600,-500.0,0.0001378,2]
[353813027,1740073848611,-500.0,0.0001378,2]
[353813028,1740073848621,-500.0,0.0001378,2]
[353813029,1740073848631,-500.0,0.0001378,2]
[353813030,1740073848640,-1437.0,0.0001378,2]
[353813031,1740073848650,-500.0,0.0001378,2]
[353813032,1740073848661,-500.0,0.0001378,2]
[353813033,1740073848671,-529.2,0.0001378,2]
[353813034,1740073848681,-905.36,0.0001378,2]
[353813035,1740073848691,-500.0,0.0001378,2]
[353813036,1740073848700,-500.0,0.0001378,2]
[353813037,1740073848710,-956.16,0.0001378,2]
[353813038,1740073848720,-500.0,0.0001378,2]
[353813039,1740073848729,-500.0,0.0001378,2]
[353813040,1740073848739,-500.0,0.0001378,2]
[353813041,1740073848749,-500.0,0.0001378,2]
[353813042,1740073848758,-500.0,0.0001378,2]
[353813043,1740073848768,-500.0,0.0001378,2]
[353813044,1740073848778,-934.68,0.0001378,2]
[353813045,1740073848787,-500.0,0.0001378,2]
[353813046,1740073848796,-500.0,0.0001378,2]
[353813047,1740073848806,-841.19,0.0001378,2]
[353813048,1740073848818,-806.4,0.0001378,2]
[353813049,1740073848827,-500.0,0.0001378,2]
[353813050,1740073848837,-500.0,0.0001378,2]
[353813051,1740073848847,-500.0,0.0001378,2]
[353813052,1740073848858,-500.0,0.0001378,2]
[353813053,1740073848868,-500.0,0.0001378,2]
[353813054,1740073848878,-500.0,0.0001378,2]
[353813055,1740073848900,-500.0,0.0001378,2]
[353813056,1740073848911,-500.0,0.0001378,2]
[353813057,1740073848921,-500.0,0.0001378,2]
[353813058,1740073848931,-500.0,0.0001378,2]
[353813059,1740073848941,-500.0,0.0001378,2]
[353813060,1740073848951,-500.0,0.0001378,2]
[353813061,1740073848961,-500.0,0.0001378,2]
[353813062,1740073848972,-500.0,0.0001378,2]
[353813063,1740073848983,-611.15,0.0001378,2]
[353813064,1740073848994,-500.0,0.0001378,2]
[353813065,1740073849006,-500.0,0.0001378,2]
[353813066,1740073849017,-500.0,0.0001378,2]
[353813067,1740073849027,-500.0,0.0001378,2]
[353813068,1740073849037,-500.0,0.0001378,2]
[353813069,1740073849047,-1403.35,0.0001378,2]
[353813070,1740073849058,-673.31,0.0001378,2]
[353813071,1740073849069,-500.0,0.0001378,2]
[353813072,1740073849080,-502.18607029,0.0001378,2]
[353813073,1740073849090,-500.0,0.0001378,2]
[353813074,1740073849101,-500.0,0.0001378,2]
[353813075,1740073849112,-500.0,0.0001378,2]
[353813076,1740073849121,-500.0,0.0001378,2]
[353813077,1740073849131,-501.8535876,0.0001378,2]
[353813078,1740073849142,-500.0,0.0001378,2]
[353813079,1740073849152,-500.0,0.0001378,2]
[353813080,1740073849162,-500.0,0.0001378,2]
[353813081,1740073849172,-1144.48,0.0001378,2]
[353813082,1740073849183,-501.09396162,0.0001378,2]
[353813083,1740073849193,-500.0,0.0001378,2]
[353813084,1740073849203,-151.0,0.0001378,2]
[353813085,1740073849213,-500.0,0.0001378,2]
[353813086,1740073849223,-500.0,0.0001378,2]
[353813087,1740073849233,-500.0,0.0001378,2]
[353813088,1740073849243,-502.39894354,0.0001378,2]
[353813089,1740073849254,-500.0,0.0001378,2]
[353813090,1740073849265,-500.0,0.0001378,2]
[353813091,1740073849275,-500.0,0.0001378,2]
[353813092,1740073849285,-500.0,0.0001378,2]
[353813093,1740073849295,-643.25,0.0001378,2]
[353813094,1740073849305,-500.0,0.0001378,2]
[353813095,1740073849315,-501.26461619,0.0001378,2]
[353813096,1740073849325,-459.8096676,0.0001378,2]
[353813097,1740073849334,-1681.47,0.0001378,2]
[353813098,1740073849344,-500.0,0.0001378,2]
[353813099,1740073849355,-500.0,0.0001378,2]
[353813100,1740073849366,-500.0,0.0001378,2]
[353813101,1740073849376,-500.0,0.0001378,2]
[353813102,1740073849386,-500.0,0.0001378,2]
[353813103,1740073849395,-500.0,0.0001378,2]
[353813104,1740073849405,-922.86,0.0001378,2]
[353813105,1740073849415,-502.71694892,0.0001378,2]
[353813106,1740073849425,-500.0,0.0001378,2]
[353813107,1740073849435,-500.0,0.0001378,2]
[353813108,1740073849444,-500.0,0.0001378,2]
[353813109,1740073849454,-500.0,0.0001378,2]
[353813110,1740073849463,-500.0,0.0001378,2]
[353813111,1740073849473,-500.0,0.0001378,2]
[353813112,1740073849484,-500.0,0.0001378,2]
[353813113,1740073849494,-940.41,0.0001378,2]
[353813114,1740073849504,-272.32219955,0.0001378,2]
[353813115,1740073849514,-500.0,0.0001378,2]
[353813116,1740073849524,-500.0,0.0001378,2]
[353813117,1740073849533,-500.0,0.0001378,2]
[353813118,1740073849543,-500.0,0.0001378,2]
[353813119,1740073849553,-500.0,0.0001378,2]
[353813120,1740073849562,-500.0,0.0001378,2]
[353813121,1740073849572,-500.0,0.0001378,2]
[353813122,1740073849582,-500.0,0.0001378,2]
[353813123,1740073849593,-500.0,0.0001378,2]
[353813124,1740073849602,-500.0,0.0001378,2]
[353813125,1740073849612,-500.0,0.0001378,2]
[353813126,1740073849622,-500.0,0.0001378,2]
[353813127,1740073849632,-500.0,0.0001378,2]
[353813128,1740073849642,-502.67069263,0.0001378,2]
[353813129,1740073849651,-500.0,0.0001378,2]
[353813130,1740073849660,-500.0,0.0001378,2]
[353813131,1740073849669,-500.0,0.0001378,2]
[353813132,1740073849678,-500.0,0.0001378,2]
[353813133,1740073849688,-500.0,0.0001378,2]
[353813134,1740073849697,-609.29778675,0.0001378,2]
[353813135,1740073849706,-626.93,0.0001378,2]
[353813136,1740073849716,-500.0,0.0001378,2]
[353813137,1740073849726,-500.0,0.0001378,2]
[353813138,1740073849737,-500.0,0.0001378,2]
[353813139,1740073849746,-500.0,0.0001378,2]
[353813140,1740073849755,-500.0,0.0001378,2]
[353813141,1740073849766,-4390.15,0.0001378,2]
[353813142,1740073849776,-512.98125807,0.0001378,2]
[353813143,1740073849786,-500.0,0.0001378,2]
[353813144,1740073849800,-500.0,0.0001378,2]
[353813145,1740073849815,-500.0,0.0001378,2]
[353813146,1740073849828,-506.93085562,0.0001378,2]
[353813147,1740073849957,-500.0,0.0001378,2]
[353813148,1740073849966,-20169.72,0.0001378,2]
[353813149,1740073849977,-500.0,0.0001378,2]
[353813150,1740073849987,-504.49751818,0.0001378,2]
[353813151,1740073849996,-2549.7,0.0001378,2]
[353813152,1740073850006,-501.88941912,0.0001378,2]
[353813153,1740073850017,-500.0,0.0001378,2]
[353813154,1740073850026,-772.27,0.0001378,2]
[353813155,1740073850036,-500.0,0.0001378,2]
[353813156,1740073850045,-500.0,0.0001378,2]
[353813157,1740073850056,-2054.69,0.0001378,2]
[353813158,1740073850065,-702.96,0.0001378,2]
[353813159,1740073850074,-500.0,0.0001378,2]
[353813160,1740073850084,-2804.34,0.0001378,2]
[353813161,1740073850093,-500.0,0.0001378,2]
[353813162,1740073850103,-500.0,0.0001378,2]
[353813163,1740073850114,-500.0,0.0001378,2]
[353813164,1740073850123,-500.0,0.0001378,2]
[353813165,1740073850133,-500.0,0.0001378,2]
[353813166,1740073850143,-500.0,0.0001378,2]
[353813167,1740073850153,-705.82,0.0001378,2]
[353813168,1740073850163,-903.32,0.0001378,2]
[353813169,1740073850173,-500.0,0.0001378,2]
[353813170,1740073850183,-269.40185819,0.0001378,2]
[353813171,1740073850192,-500.0,0.0001378,2]
[353813172,1740073850203,-500.0,0.0001378,2]
[353813173,1740073850213,-500.0,0.0001378,2]
[353813174,1740073850223,-500.0,0.0001378,2]
[353813175,1740073850232,-4653.4,0.0001378,2]
[353813176,1740073850242,-3239.14,0.0001378,2]
[353813177,1740073850251,-500.0,0.0001378,2]
[353813178,1740073850262,-433.8890098,0.0001378,2]
[353813179,1740073850271,-1279.78,0.0001378,2]
[353813180,1740073850281,-523.26795905,0.0001378,2]
[353813181,1740073850290,-500.0,0.0001378,2]
[353813182,1740073850300,-1565.09,0.0001378,2]
[353813183,1740073850309,-500.0,0.0001378,2]
[353813184,1740073850319,-500.0,0.0001378,2]
[353813185,1740073850329,-505.18893374,0.0001378,2]
[353813186,1740073850339,-500.0,0.0001378,2]
[353813187,1740073850348,-610.99,0.0001378,2]
[353813188,1740073850358,-500.0,0.0001378,2]
[353813189,1740073850371,-500.0,0.0001378,2]
[353813190,1740073850380,-4201.2,0.0001378,2]
[353813191,1740073850390,-500.0,0.0001378,2]
[353813192,1740073850400,-914.36,0.0001378,2]
[353813193,1740073850410,-500.0,0.0001378,2]
[353813194,1740073850420,-54606.58,0.0001378,2]
[353813195,1740073850430,-8871.46,0.0001378,2]
[353813196,1740073850439,-500.0,0.0001378,2]
[353813197,1740073850449,-500.0,0.0001378,2]
[353813198,1740073850459,-501.50463004,0.0001378,2]
[353813199,1740073850469,-500.0,0.0001378,2]
[353813200,1740073850480,-21675.15,0.0001378,2]
[353813201,1740073850489,-3052.92,0.0001378,2]
[353813202,1740073850499,-1109.44,0.0001378,2]
[353813203,1740073850509,-500.0,0.0001378,2]
[353813204,1740073850519,-500.0,0.0001378,2]
[353813205,1740073850528,-500.0,0.0001378,2]
[353813206,1740073850538,-500.0,0.0001378,2]
[353813207,1740073850548,-1579.4,0.0001378,2]
[353813208,1740073850558,-500.0,0.0001378,2]
[353813209,1740073850568,-1464.48,0.0001378,2]
[353813210,1740073850579,-1558.03,0.0001378,2]
[353813211,1740073850589,-5308.61,0.0001378,2]
[353813212,1740073850598,-4690.74,0.0001378,2]
[353813213,1740073850608,-501.44003449,0.0001378,2]
[353813214,1740073850618,-500.0,0.0001378,2]
[353813215,1740073850627,-501.58816451,0.0001378,2]
[353813216,1740073850637,-500.0,0.0001378,2]
[353813217,1740073850646,-959.95,0.0001378,2]
[353813218,1740073850657,-2939.67,0.0001378,2]
[353813219,1740073850667,-659.98,0.0001378,2]
[353813220,1740073850677,-500.0,0.0001378,2]
[353813221,1740073850687,-478.16417323,0.0001378,2]
[353813222,1740073850697,-2234.74,0.0001378,2]
[353813223,1740073850707,-500.0,0.0001378,2]
[353813224,1740073850717,-500.0,0.0001378,2]
[353813225,1740073850726,-500.0,0.0001378,2]
[353813226,1740073850736,-500.0,0.0001378,2]
[353813227,1740073850747,-500.0,0.0001378,2]
[353813228,1740073850756,-500.0,0.0001378,2]
[353813229,1740073850767,-500.0,0.0001378,2]
[353813230,1740073850777,-528.1,0.0001378,2]
[353813231,1740073850787,-500.0,0.0001378,2]
[353813232,1740073850797,-500.0,0.0001378,2]
[353813233,1740073850807,-500.0,0.0001378,2]
[353813234,1740073850822,-371.33958002,0.0001378,2]
[353813235,1740073850832,-2986.58,0.0001378,2]
[353813236,1740073850842,-500.0,0.0001378,2]
[353813237,1740073850852,-1842.99,0.0001378,2]
[353813238,1740073850862,-500.0,0.0001378,2]
[353813239,1740073850872,-729.17,0.0001378,2]
[353813240,1740073850882,-500.0,0.0001378,2]
[353813241,1740073850893,-500.0,0.0001378,2]
[353813242,1740073850903,-2147.03,0.0001378,2]
[353813243,1740073850912,-500.0,0.0001378,2]
[353813244,1740073850922,-500.0,0.0001378,2]
[353813245,1740073850931,-478.3062698,0.0001378,2]
[353813246,1740073850941,-500.0,0.0001378,2]
[353813247,1740073850951,-211.09352973,0.0001378,2]
[353813248,1740073850961,-500.0,0.0001378,2]
[353813249,1740073850971,-500.0,0.0001378,2]
[353813250,1740073850982,-580.33,0.0001378,2]
[353813251,1740073850992,-500.0,0.0001378,2]
[353813252,1740073851003,-500.0,0.0001378,2]
[353813253,1740073851013,-500.0,0.0001378,2]
[353813254,1740073851023,-7012.26,0.0001378,2]
[353813255,1740073851032,-683.38,0.0001378,2]
[353813256,1740073851042,-1276.52,0.0001378,2]
[353813257,1740073851052,-500.0,0.0001378,2]
[353813258,1740073851062,-182.26280745,0.0001378,2]
[353813259,1740073851071,-500.0,0.0001378,2]
[353813260,1740073851082,-500.0,0.0001378,2]
[353813261,1740073851092,-500.0,0.0001378,2]
[353813262,1740073851102,-500.0,0.0001378,2]
[353813263,1740073851112,-500.0,0.0001378,2]
[353813264,1740073851121,-1003.21,0.0001378,2]
[353813265,1740073851131,-500.0,0.0001378,2]
[353813266,1740073851141,-726.98,0.0001378,2]
[353813267,1740073851150,-151.0,0.0001378,2]
[353813268,1740073851160,-500.0,0.0001378,2]
[353813269,1740073851170,-500.0,0.0001378,2]
[353813270,1740073851180,-1848.27,0.0001378,2]
[353813271,1740073851189,-500.0,0.0001378,2]
[353813272,1740073851199,-500.0,0.0001378,2]
[353813273,1740073851208,-500.0,0.0001378,2]
[353813274,1740073851218,-581.49,0.0001378,2]
[353813275,1740073851227,-979.57,0.0001378,2]
[353813276,1740073851237,-593.07,0.0001378,2]
[353813277,1740073851246,-721.17,0.0001378,2]
[353813278,1740073851255,-500.0,0.0001378,2]
[353813279,1740073851265,-500.0,0.0001378,2]
[353813280,1740073851275,-11665.38,0.0001378,2]
[353813281,1740073851285,-600.0,0.00013782,2]
[353813282,1740073851295,-189.0,0.000138,2]
[353813283,1740073851304,-3000.0,0.000138,30]